[Event "FIDE WSCC 65 2022"]
[Site "Assisi"]
[Date "2022.11.25"]
[Round "10.7"]
[White "Gruzmann, Boris"]
[Black "Renman, Nils-Gustaf"]
[Result "0-1"]
[ECO "C02"]
[WhiteElo "2156"]
[BlackElo "2320"]
[Annotator "TA"]
[PlyCount "64"]
[EventDate "2022.11.14"]
[EventType "swiss"]
[EventCountry "ITA"]
[SourceTitle "playchess.com"]
[Source "ChessBase"]
[SourceQuality "1"]
[TimeControl "40/5400+30:1800+30"]

{[%evp 18,64,6,-26,-19,-12,-16,-16,-23,-19,0,-45,-53,-96,-100,-183,-178,-204,-179,-168,-176,-166,-161,-266,-238,-285,-280,-262,-280,-290,-195,-270,-277,-399,-398,-388,-390,-396,-371,-371,-385,-363,-335,-436,-427,-427,-414,-1383,-1353]} 1. e4 {[%emt 0:00:07]} e6 {[%emt 0:00:04]} 2. d4 {[%emt 0:00:12]} d5 {[%emt 0:00:08]} 3. e5 {[%emt 0:00:10]} c5 {[%emt 0:00:06]} 4. c3 {[%emt 0:00:11]} Nc6 {[%emt 0:00:05]} 5. Nf3 {[%emt 0:00:13]} Qb6 {[%emt 0:00:13]} 6. a3 {[%emt 0:01:10]} Nh6 {[%emt 0:00:10]} 7. b4 {[%emt 0:00:53]} cxd4 {[%emt 0:00:06]} 8. cxd4 {[%emt 0:00:19]} Nf5 {[%emt 0:00:13]} 9. Be3 {[%emt 0:00:55]} Bd7 {[%emt 0:02:21]} 10. Be2 {[%emt 0:02:14]} f6 {[%emt 0:03:40] C02: French: Advance Variation.} 11. exf6 {[%emt 0:07:30]} gxf6 {[%emt 0:00:06]} 12. Nc3 {[%emt 0:05:55]} Nxe3 {[%emt 0:06:45] The position is equal.} 13. fxe3 {[%emt 0:00:10] [#]} Nxb4 $1 {[%emt 0:07:24][%cal Oa8c8] [#]} 14. Rb1 $146 {[%emt 0:07:48][%mdl 64] Pin} ({Reject} 14. axb4 Bxb4 15. O-O Bxc3 $17) (14. O-O $5 {[%cal Ra3b4]} Nc6 15. e4 $11) (14. O-O Nc6) ({Predecessor:} 14. O-O Nc6 15. Ne1 Ke7 16. Nc2 Bg7 17. Qd2 Raf8 18. Rab1 Qc7 19. e4 dxe4 20. Nxe4 {0-1 (39) Beluska,T (1970)-Ludvik,T (1952) Czech Republic 2016}) 14... Qc7 {[%emt 0:07:34]} 15. Qb3 {[%emt 0:11:19]} Rc8 {[%emt 0:02:13]} 16. Nd1 {[%emt 0:10:18]} (16. Kd2 $17 {might work better.} Nc6 17. Qxb7) 16... Nc2+ $19 {[%emt 0:03:02]} 17. Kf2 {[%emt 0:01:12]} Nxa3 {[%emt 0:08:46]} 18. Ra1 {[%emt 0:00:12]} Qa5 {[%emt 0:04:09]} 19. Qxb7 {[%emt 0:00:47]} Bd6 {[%emt 0:01:25]} 20. Ne1 {[%emt 0:02:50]} (20. Ra2 $142) 20... Ke7 {[%emt 0:03:30]} ({Worse is} 20... Qd2 21. Qa6 Nc2 22. Nf3 $17) 21. Qa6 {[%emt 0:03:04]} Qxa6 {[%emt 0:02:11]} 22. Bxa6 {[%emt 0:00:09]} Rc6 {[%emt 0:02:26]} 23. Bd3 {[%emt 0:00:29]} f5 {[%emt 0:02:18] Inhibits e4.} 24. g3 {[%emt 0:02:08]} (24. h3 $142) 24... Rhc8 {[%emt 0:01:34]} 25. Ng2 {[%emt 0:01:56]} (25. Ra2 $142) 25... Rc1 {[%emt 0:00:47]} 26. Rxc1 {[%emt 0:04:15]} Rxc1 {[%emt 0:01:07]} 27. Ke2 {[%emt 0:01:15]} a5 {[%emt 0:02:00][%cal Ba7a5,Ba5a4,Ba4a3][%mdl 32]} 28. Nf2 {[%emt 0:01:10]} Rxh1 {[%emt 0:02:27]} 29. Nxh1 {[%emt 0:00:09]} Bb4 {[%emt 0:03:07]} 30. Kd1 {[%emt 0:01:57]} Nc4 {[%emt 0:01:01]} 31. Nf2 {[%emt 0:05:30]} a4 {[%emt 0:04:58] [#] aiming for ...a3.} 32. Kc2 {[%emt 0:03:32]} (32. Bb1 $142) 32... a3 {[%emt 0:00:25] White got outplayed after the opening.   Weighted Error Value: White=0.64/Black=0.10 (very precise)} 0-1

[Event "FIDE WSCC 65 2022"]
[Site "Assisi"]
[Date "2022.11.25"]
[Round "10.8"]
[White "Roos, Louis"]
[Black "Luciani, Carlo"]
[Result "1-0"]
[ECO "E66"]
[WhiteElo "2293"]
[BlackElo "2187"]
[Annotator "TA"]
[PlyCount "77"]
[EventDate "2022.11.14"]
[EventType "swiss"]
[EventCountry "ITA"]
[SourceTitle "playchess.com"]
[Source "ChessBase"]
[SourceQuality "1"]
[TimeControl "40/5400+30:1800+30"]

{[%evp 29,77,0,67,59,91,84,86,89,93,0,0,0,0,-128,-120,-102,-103,-185,-199,-206,-211,-474,-412,-520,-418,-478,-405,-397,-385,-506,-492,-472,-331,-315,-316,-355,912,909,1118,1097,984,956,29989,5573,6415,1577,29985,29986,29986,29987]} 1. c4 {[%emt 0:00:20]} Nf6 {[%emt 0:00:25]} 2. Nc3 {[%emt 0:00:10]} g6 {[%emt 0:00:09]} 3. g3 {[%emt 0:00:28]} Bg7 {[%emt 0:00:11]} 4. Bg2 {[%emt 0:01:02]} O-O {[%emt 0:00:33]} 5. d4 {[%emt 0:08:11]} d6 {[%emt 0:00:17]} 6. Nf3 {[%emt 0:00:19]} Nc6 {[%emt 0:00:20]} 7. d5 {[%emt 0:05:05]} Na5 {[%emt 0:00:58]} 8. Nd2 {[%emt 0:01:52]} c5 {[%emt 0:00:25]} 9. O-O {[%emt 0:10:51]} a6 {[%emt 0:00:43]} 10. Qc2 {[%emt 0:01:25]} Rb8 {[%emt 0:00:37]} 11. b3 {[%emt 0:05:58]} b5 {[%emt 0:01:41]} 12. Rb1 {[%emt 0:04:16]} e5 {[%emt 0:14:53]} 13. cxb5 {[%emt 0:07:04]} axb5 {[%emt 0:05:47]} 14. b4 {[%emt 0:01:53]} cxb4 {[%emt 0:03:49]} 15. Rxb4 {[%emt 0:00:57]} Bd7 {[%emt 0:01:00]} (15... Qc7 $11) 16. Qb1 $14 {[%emt 0:06:52][%cal Rc3b5] White is more active. E66: King's Indian: Fianchetto: 6...c5 7 0-0 Nc6 8 d5.} Qc7 {[%emt 0:09:55]} 17. Nxb5 {[%emt 0:17:36]} Qc5 {[%emt 0:01:01][%csl LRb5,LRd5][%cal Rd7b5]} 18. a4 {[%emt 0:00:08] Threatens to win with Ba3. White is better.} Nxd5 {[%emt 0:03:13] [#]} 19. Bxd5 $146 {[%emt 0:00:19]} ({Better is} 19. Rb2 $16) ({Predecessor:} 19. Rb2 Nf6 20. Rc2 Qb6 21. Ba3 Bxb5 22. axb5 Rfd8 23. Rfc1 Ng4 24. Ne4 Bh6 25. Rf1 {1-0 (67) Bora,S (2363)-Martin Del Campo C,R (2360) Charlotte 2017}) 19... Qxd5 $11 {[%emt 0:00:43]} 20. e4 {[%emt 0:00:17]} Qa8 {[%emt 0:12:25]} 21. Nxd6 {[%emt 0:06:45]} (21. Nc7 $11 {keeps the balance.} Qa7 22. Nb5) 21... Nc6 $36 {[%emt 0:04:29][%cal Ba5c6,Bc6d4,Bd4c2][%mdl 2080] Black is really pushing.} 22. Rxb8 {[%emt 0:02:41]} Rxb8 {[%emt 0:00:29]} 23. Qa2 {[%emt 0:03:50]} (23. Bb2 $17 {was worth a try.}) 23... Be6 $19 {[%emt 0:00:34][%mdl 1024] Black has strong compensation.} 24. Qa1 {[%emt 0:00:25] [#]} Nd4 $1 {[%emt 0:00:36] Hoping for ...Rd8.} 25. a5 $2 {[%emt 0:06:12]} (25. Bb2 {only move.}) 25... Qa6 {[%emt 0:01:43]} 26. Ba3 {[%emt 0:01:19]} Nc2 {[%emt 0:09:48]} 27. Rb1 {[%emt 0:01:07]} Rxb1+ {[%emt 0:00:44][%mdl 64] Deflection} ({But not} 27... Qxa5 28. Rxb8+ Bf8 29. N6c4 $18) 28. Qxb1 {[%emt 0:03:44]} Nxa3 {[%emt 0:00:17]} 29. Qb8+ {[%emt 0:00:51]} Bf8 {[%emt 0:00:24] And now ...Qe2 would win.} 30. Ne8 {[%emt 0:01:02]} Qb5 {[%emt 0:08:24]} 31. Nf6+ Kg7 {[%emt 0:00:30]} 32. Ne8+ Kh6 $4 {[%emt 0:00:30][%mdl 8192]} (32... Kh8 $19 33. Qd8 Qc5) 33. Qd8 $18 {[%cal Rd8h4]} f6 {[%emt 0:00:30]} 34. Nc7 {[%mdl 64] [#] Discovered Attack, Double Attack} ({And not} 34. Nxf6 Qc5 $11) 34... Qb4 {[%emt 0:00:30]} 35. Nxe6 {Black must now prevent a6.} Bg7 {[%emt 0:00:30]} 36. Qd7 (36. g4 $142 Qa4 37. g5+ Kh5 38. Nxg7+ Kxg5 39. Nf3+ Kf4 40. Qxf6+ Kxe4 41. Qh4+ Kxf3 42. Qxa4) 36... Bh8 {[%emt 0:00:30]} 37. Qd3 (37. Nd8 $142 Qb5 38. Nf7+ Kg7 39. Qe7 Qb4 40. Qxb4 Kxf7 41. a6 Kg7 42. a7) 37... g5 {[%emt 0:00:30]} 38. g4 Kg6 {[%emt 0:00:30]} 39. Qd7 {White used his chance.   Weighted Error Value: White=0.56/Black=0.97} 1-0

[Event "FIDE WSCC 65 2022"]
[Site "Assisi"]
[Date "2022.11.25"]
[Round "10.9"]
[White "Vaisser, Anatoly"]
[Black "Chan, Peng Kong"]
[Result "1-0"]
[ECO "E44"]
[WhiteElo "2463"]
[BlackElo "2149"]
[Annotator "TA"]
[PlyCount "77"]
[EventDate "2022.11.14"]
[EventType "swiss"]
[EventCountry "ITA"]
[SourceTitle "playchess.com"]
[Source "ChessBase"]
[SourceQuality "1"]
[TimeControl "40/5400+30:1800+30"]

{[%evp 13,77,11,18,19,38,34,38,25,33,29,34,25,43,43,49,15,15,15,25,15,20,9,29,20,25,23,21,20,28,17,37,31,60,12,60,5,60,0,0,11,30,0,0,0,0,0,0,0,5,0,164,143,151,158,148,157,157,156,297,283,252,262,247,231,220,39]} 1. d4 {[%emt 0:00:04]} Nf6 {[%emt 0:00:10][%cal Bg8f6,Bf6e4,Be4d2][%mdl 32]} 2. c4 {[%emt 0:00:08]} e6 {[%emt 0:00:13]} 3. Nc3 {[%emt 0:00:14]} Bb4 {[%emt 0:00:14]} 4. e3 {[%emt 0:00:09]} b6 {[%emt 0:01:00]} 5. Nge2 {[%emt 0:00:27]} Ne4 {[%emt 0:01:43]} 6. Bd2 {[%emt 0:00:51]} Nxd2 {[%emt 0:00:49]} 7. Qxd2 {[%emt 0:00:07]} Bb7 {[%emt 0:00:22]} 8. a3 {[%emt 0:05:03] E44: Nimzo-Indian: Rubinstein: 4...b6 5 Ne2.} Bxc3 {[%emt 0:00:33]} 9. Nxc3 {[%emt 0:00:26]} d6 {[%emt 0:00:33]} 10. Bd3 {[%emt 0:02:25] White is slightly better.} Nd7 {[%emt 0:02:02]} 11. O-O {[%emt 0:04:42]} O-O {[%emt 0:02:48] [#]} 12. f4 $146 {[%emt 0:02:49]} ({Predecessor:} 12. b4 Qh4 13. f4 f5 14. d5 e5 15. Nb5 e4 16. Be2 Rfc8 17. Nd4 Qf6 18. g4 {1-0 (30) Lein,A (2490)-Nielsen,U (2300) Gausdal 1990}) 12... Qe7 {[%emt 0:08:13]} 13. e4 {[%emt 0:04:40]} e5 {[%emt 0:07:04]} 14. fxe5 {[%emt 0:00:48]} (14. Nd5 $5 {[%cal Rd5e7]} Qd8 15. Bc2 $14) 14... dxe5 {[%emt 0:00:07]} 15. d5 {[%emt 0:00:13]} a5 {[%emt 0:01:15]} 16. b3 {[%emt 0:07:48]} Rfd8 {[%emt 0:06:46]} 17. Qe2 {[%emt 0:05:46]} Nf8 {[%emt 0:02:42]} 18. Nd1 {[%emt 0:02:39]} Bc8 {[%emt 0:06:47]} 19. Ne3 {[%emt 0:00:39]} f6 {[%emt 0:03:01]} 20. Qd2 {[%emt 0:03:22]} Ng6 {[%emt 0:04:03]} 21. g3 {[%emt 0:01:19]} Qd6 {[%emt 0:00:59]} 22. b4 {[%emt 0:06:49]} c5 {[%emt 0:08:15][%cal Ra5b4]} 23. Rab1 {[%emt 0:03:51]} (23. b5 $14) 23... Bd7 {[%emt 0:06:18]} (23... axb4 $11 {might be stronger.} 24. axb4 Nh8) 24. Rb2 {[%emt 0:02:53]} (24. b5 $14) 24... Ne7 {[%emt 0:01:28]} ({Black should try} 24... axb4 $11 25. axb4 Nh8) 25. Rfb1 {[%emt 0:01:16]} (25. b5 $1 $14) 25... axb4 $11 {[%emt 0:01:56]} 26. axb4 {[%emt 0:00:04]} Ra6 {[%emt 0:00:57]} 27. Nc2 {[%emt 0:07:05]} Rda8 {[%emt 0:00:44]} 28. bxc5 {[%emt 0:00:39]} bxc5 {[%emt 0:03:13]} 29. Ne3 {[%emt 0:03:47]} Nc8 {[%emt 0:05:37]} 30. Be2 {[%emt 0:03:47]} R6a7 {[%emt 0:02:49]} 31. Rb7 {[%emt 0:07:04]} (31. Qd1 {simplifies} Ba4 32. Qd3 Bd7 33. Rb7) 31... Bc6 $2 {[%emt 0:00:44]} (31... Qa6 $11 32. Rxa7 Rxa7) 32. Rxa7 {[%emt 0:01:17]} Rxa7 {[%emt 0:01:28]} 33. Nf5 {[%emt 0:00:18]} Qd8 {[%emt 0:00:27] [#]} 34. Qe3 $1 $36 {[%emt 0:02:08][%mdl 2048] White is really pushing.} Bd7 {[%emt 0:03:22]} 35. Qxc5 {[%emt 0:00:40] Rb8 is the strong threat. White has more active pieces.} Rc7 {[%emt 0:00:46]} (35... Ra5 $16 {keeps fighting.} 36. Qb4 Qc7) 36. Qa5 $18 {[%emt 0:04:15] Black must now prevent Rb7.} Bxf5 {[%emt 0:00:36]} 37. exf5 {[%emt 0:00:08]} ({Don't take} 37. Rb7 Rd7 38. Qxd8+ Rxd8 $18) 37... Qd6 {[%emt 0:02:58] Against c5} 38. Rb8 {[%emt 0:01:41] aiming for Ra8.} Kf7 {[%emt 0:01:38]} (38... Rxc4 {leads to mate.} 39. Bxc4 h5 40. Rxc8+ Kh7 41. Qb5 g6 42. Qb7+ Kh6 43. h4) 39. Qb4 $2 {[%emt 0:02:37] Weighted Error Value: White=0.12 (very precise) /Black=0.25 (precise)} (39. Kg2 $18) 1-0

[Event "FIDE WSCC 65 2022"]
[Site "Assisi"]
[Date "2022.11.25"]
[Round "10.10"]
[White "Sideifzade, Fikret"]
[Black "Bergstrom, Rolf"]
[Result "1/2-1/2"]
[ECO "E60"]
[WhiteElo "2391"]
[BlackElo "2166"]
[Annotator "TA"]
[PlyCount "53"]
[EventDate "2022.11.14"]
[EventType "swiss"]
[EventCountry "ITA"]
[SourceTitle "playchess.com"]
[Source "ChessBase"]
[SourceQuality "1"]
[TimeControl "40/5400+30:1800+30"]

{[%evp 13,53,31,30,8,17,0,19,11,15,12,19,14,20,10,26,0,1,-15,-7,-32,-32,-24,-18,-17,0,-16,0,0,0,-57,-5,-5,4,0,0,-36,-15,-14,22,-20,0,0]} 1. d4 {[%emt 0:00:02]} d6 {[%emt 0:00:22]} 2. Nf3 {[%emt 0:00:21]} Nf6 {[%emt 0:00:06]} 3. g3 {[%emt 0:03:53]} g6 {[%emt 0:00:14]} 4. Bg2 {[%emt 0:00:05]} Bg7 {[%emt 0:00:06]} 5. O-O {[%emt 0:00:27]} O-O {[%emt 0:00:07]} 6. c4 {[%emt 0:02:02]} Bf5 {[%emt 0:01:34]} 7. Nc3 {[%emt 0:01:02]} Ne4 {[%emt 0:00:23]} 8. Nd5 {[%emt 0:02:34] E60: King's Indian: Unusual lines and Fianchetto Variation without Nc3.} c6 {[%emt 0:03:12]} 9. Ne3 {[%emt 0:01:06]} Be6 {[%emt 0:00:46]} 10. b3 {[%emt 0:02:23]} f5 {[%emt 0:06:19]} 11. Bb2 {[%emt 0:04:33]} Nd7 {[%emt 0:03:15]} 12. Qc2 {[%emt 0:06:36] [#]} Bf7 $146 {[%emt 0:05:06][%cal Be6f7,Bf7g6,Bg6h5][%mdl 32]} ({Predecessor:} 12... Rc8 13. Rad1 Qa5 14. a3 d5 15. Rc1 Bh6 16. Qd3 f4 17. b4 Qa4 18. gxf4 Bxf4 19. cxd5 cxd5 {½-½ (35) Xiong,J (2688)-Bortnyk,O (2604) Chess.com INT 2022}) 13. Rfd1 {[%emt 0:02:36]} e6 {[%emt 0:07:19]} 14. Nf1 {[%emt 0:06:19]} g5 {[%emt 0:07:07]} 15. N3d2 {[%emt 0:03:37]} Nxd2 {[%emt 0:02:04]} 16. Rxd2 {[%emt 0:13:11]} Bg6 {[%emt 0:02:25]} 17. e3 {[%emt 0:01:19]} Nf6 {[%emt 0:08:53]} 18. f4 {[%emt 0:04:56]} Ne4 {[%emt 0:02:36]} 19. Re2 {[%emt 0:00:33]} d5 {[%emt 0:02:10]} 20. Nd2 {[%emt 0:00:31]} Bh5 {[%emt 0:03:40]} 21. Ree1 {[%emt 0:01:12]} ({White should try} 21. Nf3 $11) 21... h6 {[%emt 0:08:14]} (21... gxf4 $15 22. gxf4 Rf6) 22. a4 {[%emt 0:04:53]} Qa5 {[%emt 0:04:09]} 23. b4 {[%emt 0:04:17][%cal Bb3b4,Bb4b5][%mdl 32]} Qd8 {[%emt 0:00:49]} ({Resist} 23... Qxb4 24. Nxe4 dxe4 25. Ba3 $16) 24. Nf3 {[%emt 0:05:16]} Bxf3 {[%emt 0:01:08]} 25. Bxf3 {[%emt 0:01:08] The position is equal.} Nd6 {[%emt 0:02:33]} 26. Be2 {[%emt 0:01:39]} (26. c5 $5 {[%cal Rc5d6]} Ne4 27. Qe2 $11) 26... a6 {[%emt 0:04:27]} 27. b5 {[%emt 0:27:29] An interesting draw.   Weighted Error Value: White=0.16 (very precise) /Black=0.12 (very precise)} 1/2-1/2

[Event "FIDE WSCC 65 2022"]
[Site "Assisi"]
[Date "2022.11.25"]
[Round "10.11"]
[White "Hutchinson, Paul A"]
[Black "Binham, Timothy F."]
[Result "1/2-1/2"]
[ECO "E61"]
[WhiteElo "2148"]
[BlackElo "2284"]
[Annotator "TA"]
[PlyCount "56"]
[EventDate "2022.11.14"]
[EventType "swiss"]
[EventCountry "ITA"]
[SourceTitle "playchess.com"]
[Source "ChessBase"]
[SourceQuality "1"]
[TimeControl "40/5400+30:1800+30"]

{[%evp 22,56,0,0,-7,-42,-46,-46,-29,-32,-38,-43,-28,-45,-42,-50,-16,-83,-59,-63,-45,-56,-30,-24,-26,-43,-38,-45,-25,-41,-22,-31,-17,-48,-37,-43,-19]} 1. d4 {[%emt 0:00:01]} Nf6 {[%emt 0:00:06]} 2. Bf4 {[%emt 0:00:06]} g6 {[%emt 0:00:25]} 3. Nf3 {[%emt 0:00:19]} Bg7 {[%emt 0:00:09]} 4. h3 {[%emt 0:00:09]} O-O {[%emt 0:00:48]} 5. e3 {[%emt 0:00:04]} d6 {[%emt 0:00:24]} 6. c4 {[%emt 0:00:10]} b6 {[%emt 0:09:39]} 7. Nc3 {[%emt 0:00:19]} Bb7 {[%emt 0:00:02]} 8. Be2 {[%emt 0:00:47]} Nbd7 {[%emt 0:00:29]} 9. O-O {[%emt 0:01:09]} Re8 {[%emt 0:02:36]} 10. Qc2 {[%emt 0:07:56]} e5 {[%emt 0:01:57]} 11. Bh2 $1 {[%emt 0:00:16] The main line 11.Bh2 scores better than 11.dxe5.} exd4 {[%emt 0:08:51]} 12. exd4 {[%emt 0:01:06]} Ne4 {[%emt 0:00:55] E61: King's Indian: Early deviations for White, including Smyslov System.} 13. Rad1 {[%emt 0:00:36]} Nxc3 {[%emt 0:09:11]} 14. bxc3 {[%emt 0:00:28] [#]} Nf6 $146 {[%emt 0:01:34]} ({Predecessor:} 14... Qf6 15. Bg3 Qd8 16. Rfe1 Be4 17. Qa4 Rb8 18. Nd2 Nf6 19. Bh4 Bf5 20. Bf3 a5 {1-0 (48) Gostelow,D (2059)-Niedbal,P (1750) West Bromwich 2014}) 15. Rfe1 {[%emt 0:03:36]} Qd7 {[%emt 0:01:17]} 16. Nd2 {[%emt 0:05:57]} Re7 {[%emt 0:05:51]} 17. Bf4 {[%emt 0:05:57]} Rae8 {[%emt 0:01:34]} 18. Be3 {[%emt 0:02:21]} Ne4 {[%emt 0:17:13]} 19. Nf1 {[%emt 0:01:16]} (19. Nxe4 $11 Bxe4 20. Qd2) 19... Bc6 {[%emt 0:02:51]} 20. Rc1 {[%emt 0:09:40]} h6 {[%emt 0:07:08]} 21. Qd3 {[%emt 0:11:26]} Ng5 {[%emt 0:09:22]} 22. Bxg5 {[%emt 0:12:27]} hxg5 {[%emt 0:00:04]} 23. Ne3 {[%emt 0:00:11]} Be4 {[%emt 0:02:12] This pair of bishops is nice.} 24. Qd2 {[%emt 0:00:53]} Bb7 {[%emt 0:04:16]} 25. Bd3 {[%emt 0:07:50]} f5 {[%emt 0:05:48]} 26. Re2 {[%emt 0:06:25]} c5 {[%emt 0:03:07]} 27. Nc2 {[%emt 0:05:26]} Rxe2 {[%emt 0:00:58]} 28. Bxe2 {[%emt 0:00:11]} Bf6 {[%emt 0:02:26] Weighted Error Value: White=0.16 (very precise) /Black=0.13 (very precise)} 1/2-1/2

[Event "FIDE WSCC 65 2022"]
[Site "Assisi"]
[Date "2022.11.25"]
[Round "10.12"]
[White "Gaprindashvili, Nona"]
[Black "Peretz, Malkiel"]
[Result "1/2-1/2"]
[ECO "D41"]
[WhiteElo "2268"]
[BlackElo "2142"]
[Annotator "TA"]
[PlyCount "74"]
[EventDate "2022.11.14"]
[EventType "swiss"]
[EventCountry "ITA"]
[SourceTitle "playchess.com"]
[Source "ChessBase"]
[SourceQuality "1"]
[TimeControl "40/5400+30:1800+30"]

{[%evp 11,74,38,51,0,28,23,26,30,27,28,29,39,42,33,25,20,24,14,25,23,24,21,34,16,52,33,35,31,41,35,35,35,38,36,38,24,26,6,20,13,21,19,16,0,0,0,0,-8,-8,-8,0,0,8,0,110,-42,8,-70,0,0,0,0,0,-4,-1]} 1. d4 {[%emt 0:00:05]} Nf6 {[%emt 0:00:10]} 2. c4 {[%emt 0:00:11]} e6 {[%emt 0:00:29]} 3. Nf3 {[%emt 0:00:47]} d5 {[%emt 0:00:15]} 4. Nc3 {[%emt 0:00:16]} c5 {[%emt 0:02:01]} 5. cxd5 {[%emt 0:01:20]} cxd4 {[%emt 0:00:16]} 6. Qxd4 {[%emt 0:04:08]} Nxd5 {[%emt 0:02:14]} 7. Nxd5 {[%emt 0:01:39] D41: Queen's Gambit Declined: Semi-Tarrasch with 5 cxd5.} ({White should try} 7. e4 $1 $14 Nc6 8. Bb5 Nxc3 9. Qxc3 (9. bxc3 Bd7 $11)) 7... Qxd5 {[%emt 0:01:14]} (7... Nc6 $5 {[%cal Rc6d4]} 8. Qd3 Qxd5 $11) 8. Qxd5 {[%emt 0:00:50]} exd5 {[%emt 0:00:03]} 9. Bd2 {[%emt 0:03:03] White has an edge.} Nc6 {[%emt 0:01:19]} 10. e3 {[%emt 0:01:26] [#]} Be7 $146 {[%emt 0:02:15]} ({Predecessor:} 10... Bg4 11. Be2 Bc5 12. h3 Bh5 13. Bc3 O-O 14. Rd1 Rad8 15. a3 Bxf3 16. Bxf3 d4 17. exd4 Nxd4 {½-½ (24) Hoffman,A (2378)-De Oliveira,D (2019) Joao Pessoa 2022}) 11. Bc3 {[%emt 0:00:58]} O-O {[%emt 0:00:40]} 12. Rd1 {[%emt 0:07:18]} Be6 {[%emt 0:01:09]} 13. a3 {[%emt 0:00:48]} Rac8 {[%emt 0:09:53]} 14. Be2 {[%emt 0:01:11]} Rfd8 {[%emt 1:15:32]} 15. O-O {[%emt 0:00:59]} Nb8 {[%emt 0:00:00]} 16. Rc1 {[%emt 0:17:27]} Nd7 {[%emt 0:00:00]} 17. Bd4 {[%emt 0:12:22]} Bc5 {[%emt 0:00:00]} 18. h3 {[%emt 0:03:28]} Bxd4 {[%emt 0:00:00]} 19. Nxd4 {[%emt 0:00:03]} Nb6 {[%emt 0:00:00]} 20. Rfd1 {[%emt 0:01:40]} Rxc1 {[%emt 0:00:00]} 21. Rxc1 {[%emt 0:00:02]} Rc8 {[%emt 0:00:00]} 22. Rxc8+ {[%emt 0:01:58]} Nxc8 $14 {[%emt 0:00:00][%mdl 4096] Endgame KBN-KBN} 23. f4 {[%emt 0:00:26]} Nd6 {[%emt 0:00:00]} 24. Bd3 {[%emt 0:03:20]} g6 {[%emt 0:00:00]} 25. g4 {[%emt 0:00:52]} Bd7 {[%emt 0:00:00]} 26. Kf2 {[%emt 0:01:07]} Kf8 {[%emt 0:00:00]} 27. Kg3 {[%emt 0:01:12]} Ke7 {[%emt 0:00:00]} 28. h4 {[%emt 0:01:16]} Nc4 {[%emt 0:00:00]} 29. Bxc4 {[%emt 0:00:39]} dxc4 $11 {[%emt 0:00:00] KB-KN} 30. f5 {[%emt 0:02:06]} b5 {[%emt 0:00:00]} 31. Kf4 {[%emt 0:00:35]} a5 {[%emt 0:00:00]} 32. e4 {[%emt 0:00:27]} Kd6 {[%emt 0:00:00] [#]} (32... b4 $11 {remains equal.}) 33. Nc2 $2 {[%emt 0:13:54]} (33. e5+ $1 $16 Kd5 34. e6 fxe6 35. f6 (35. fxe6 Bxe6 36. Nxb5 Bd7 $17)) 33... h6 {[%emt 0:00:00]} (33... Kc5 $15) 34. Ne3 {[%emt 0:11:21]} (34. e5+ $11 Ke7 35. Nd4) 34... g5+ {[%emt 0:00:00]} (34... Kc5 $1 $15 35. Nc2 b4) 35. hxg5 {[%emt 0:00:02] The position is equal.} hxg5+ {[%emt 0:00:00]} 36. Kxg5 {[%emt 0:00:24] Strongly threatening Kf6.} Ke5 {[%emt 0:00:00]} 37. Nd5 {[%emt 0:00:03]} Bc6 {[%emt 0:00:00] Weighted Error Value: White=0.23 (precise) /Black=0.18 (very precise)} 1/2-1/2